fUSD/lending_fUSD_20240606
["ID","MTS","AMOUNT","RATE_DAILY","PERIOD"]
[328645575,1717662644941,-150.0,0.00029827,2]
[328645576,1717662644951,-150.0,0.00029841,2]
[328645577,1717662644961,-150.0,0.00029843,2]
[328645578,1717662644970,-150.0,0.00029846,2]
[328645579,1717662644980,-150.0,0.00029856,2]
[328645580,1717662644989,-165.17737501,0.00029869,2]
[328645581,1717662645000,-150.0,0.00029869,2]
[328645582,1717662645010,-150.0,0.00029872,2]
[328645583,1717662645019,-150.0,0.00029874,2]
[328645584,1717662645029,-150.0,0.00029891,2]
[328645585,1717662645038,-150.0,0.00029896,2]
[328645586,1717662645048,-150.0,0.00029902,2]
[328645587,1717662645058,-150.0,0.00029904,2]
[328645588,1717662645068,-150.0,0.00029937,2]
[328645589,1717662645078,-150.0,0.00029956,2]
[328645590,1717662645087,-151.0,0.00029958,7]
[328645591,1717662645097,-361992.26321,0.00029979,13]
[328645592,1717662645107,-246.824808,0.00029979,7]
[328645593,1717662645117,-151.0,0.00029979,7]
[328645594,1717662645127,-151.0,0.00029979,7]
[328645595,1717662645137,-151.0,0.00029979,7]
[328645596,1717662645147,-151.0,0.00029979,7]
[328645597,1717662645157,-151.0,0.00029979,7]
[328645598,1717662645166,-151.0,0.00029979,7]
[328645599,1717662645175,-151.0,0.00029979,7]
[328645600,1717662645185,-151.0,0.00029979,7]
[328645601,1717662645195,-151.0,0.00029979,7]
[328645602,1717662645207,-151.0,0.00029979,7]
[328645603,1717662645217,-151.0,0.00029979,7]
[328645604,1717662645226,-151.0,0.00029979,7]
[328645606,1717662645236,-151.0,0.00029979,7]
[328645607,1717662645246,-151.0,0.00029979,7]
[328645608,1717662645255,-151.0,0.00029979,7]
[328645609,1717662645265,-151.0,0.00029979,7]
[328645610,1717662645274,-163.010279,0.00029979,7]
[328645611,1717662645284,-151.0,0.00029979,7]
[328645612,1717662645293,-151.0,0.00029979,7]
[328645613,1717662645303,-151.0,0.00029979,7]
[328645614,1717662645313,-151.0,0.00029979,7]
[328645615,1717662645323,-245.0,0.00029979,7]
[328645616,1717662645332,-192.81005387,0.00029979,7]
[328645617,1717662645342,-151.0,0.00029979,7]
[328645619,1717662645352,-151.0,0.00029979,7]
[328645620,1717662645361,-151.0,0.00029979,7]
[328645621,1717662645369,-151.0,0.00029979,7]
[328645628,1717662645465,-151.0,0.00029979,7]
[328645631,1717662645492,-270.595378,0.00029979,7]
[328645633,1717662645502,-535.273592,0.00029979,7]
[328645635,1717662645512,-151.0,0.00029979,7]
[328645637,1717662645521,-535.273592,0.00029979,7]
[328645639,1717662645531,-151.0,0.00029979,7]
[328645641,1717662645542,-151.0,0.00029979,7]
[328645643,1717662645552,-670.004452,0.00029979,7]
[328645645,1717662645562,-670.004452,0.00029979,7]
[328645647,1717662645571,-151.0,0.00029979,7]
[328645648,1717662645580,-151.0,0.00029979,7]
[328645649,1717662645590,-303.292221,0.00029979,7]
[328645650,1717662645600,-151.0,0.00029979,7]
[328645651,1717662645609,-303.292221,0.00029979,7]
[328645652,1717662645618,-199.72796,0.00029979,7]
[328645653,1717662645628,-199.72796,0.00029979,7]
[328645654,1717662645637,-432.125985,0.00029979,7]
[328645655,1717662645647,-151.0,0.00029979,7]
[328645656,1717662645656,-151.0,0.00029979,7]
[328645657,1717662645666,-503.031664,0.00029979,7]
[328645658,1717662645675,-550.002291,0.00029979,7]
[328645659,1717662645684,-503.031664,0.00029979,7]
[328645660,1717662645693,-550.002291,0.00029979,7]
[328645661,1717662645703,-151.0,0.00029979,7]
[328645662,1717662645713,-151.0,0.00029979,7]
[328645663,1717662645722,-151.0,0.00029979,7]
[328645664,1717662645732,-151.0,0.00029979,7]
[328645665,1717662645742,-204.558432,0.00029979,7]
[328645666,1717662645751,-151.0,0.00029979,7]
[328645667,1717662645762,-204.558432,0.00029979,7]
[328645668,1717662645771,-151.0,0.00029979,7]
[328645669,1717662645780,-29279.6622981,0.00029979,2]
[328645670,1717662645789,-28364.3240181,0.00029979,2]
[328645671,1717662645799,-27448.9857381,0.00029979,2]
[328645672,1717662645808,-26533.6474581,0.00029979,2]
[328645673,1717662645818,-25618.3091781,0.00029979,2]
[328645674,1717662645827,-151.0,0.00029979,7]
[328645675,1717662645837,-159.395729,0.00029979,7]
[328645676,1717662645847,-151.0,0.00029979,7]
[328645677,1717662645857,-159.395729,0.00029979,7]
[328645678,1717662645866,-256.314601,0.00029979,7]
[328645679,1717662645876,-246.437414,0.00029979,7]
[328645680,1717662645885,-256.314601,0.00029979,7]
[328645681,1717662645895,-151.0,0.00029979,7]
[328645682,1717662645904,-151.457408,0.00029979,7]
[328645683,1717662645914,-78768.7198746,0.00029979,2]
[328645684,1717662645924,-76180.6390269,0.00029979,2]
[328645685,1717662645933,-73592.5581792,0.00029979,2]
[328645686,1717662645943,-71004.4773314,0.00029979,2]
[328645687,1717662645952,-68416.3964837,0.00029979,2]
[328645688,1717662645962,-151.0,0.00029979,7]
[328645689,1717662645971,-151.0,0.00029979,7]
[328645690,1717662645981,-319.756109,0.00029979,7]
[328645691,1717662645991,-2351.618466,0.00029979,7]
[328645692,1717662646001,-319.756109,0.00029979,7]
[328645693,1717662646010,-2351.618466,0.00029979,7]
[328645694,1717662646021,-299.886167,0.00029979,7]
[328645695,1717662646030,-200.832762,0.00029979,7]
[328645696,1717662646040,-151.0,0.00029979,7]
[328645697,1717662646049,-151.0,0.00029979,7]
[328645698,1717662646058,-299.886167,0.00029979,7]
[328645699,1717662646068,-200.832762,0.00029979,7]
[328645700,1717662646077,-151.0,0.00029979,7]
[328645701,1717662646086,-151.0,0.00029979,7]
[328645702,1717662646096,-151.0,0.00029979,7]
[328645703,1717662646106,-151.0,0.00029979,7]
[328645704,1717662646120,-151.0,0.00029979,7]
[328645705,1717662646129,-1024.0,0.0002998,15]
[328645706,1717662646138,-500.0,0.0002998,3]
[328645707,1717662646148,-500.0,0.0002998,3]
[328645708,1717662646158,-500.0,0.0002998,3]
[328645709,1717662646168,-5800.0,0.00029984,2]
[328645710,1717662646177,-500.0,0.00029989,3]
[328645711,1717662646188,-500.0,0.00029989,3]
[328645712,1717662646198,-500.0,0.00029989,3]
[328645713,1717662646207,-16000.0,0.00029989,3]
[328645714,1717662646218,-5800.0,0.00029992,2]
[328645715,1717662646226,-5800.0,0.00029992,2]
[328645716,1717662646235,-4096.81539188,0.00029997,2]
[328645717,1717662646245,-270.75431219,0.00029998,10]
[328645718,1717662646254,-500.0,0.00029998,3]
[328645719,1717662646264,-500.0,0.00029998,3]
[328645720,1717662646273,-500.0,0.00029998,3]
[328645721,1717662646283,-688.05729315,0.00029998,2]
[328645722,1717662646293,-1200.91244228,0.00029998,2]
[328645723,1717662646302,-155.76379323,0.00029998,7]
[328645724,1717662646311,-637.70984419,0.00029998,14]
[328645725,1717662646320,-1260.44934067,0.00029998,2]
[328645726,1717662646330,-234.92335311,0.00029998,2]
[328645727,1717662646339,-1487.67918963,0.00029998,2]
[328645728,1717662646349,-2023.19201543,0.00029998,2]
[328645729,1717662646359,-325.41774156,0.00029998,2]
[328645730,1717662646368,-192.85983512,0.00029998,2]
[328645731,1717662646378,-1886.77782089,0.00029998,2]
[328645732,1717662646387,-1267.41790401,0.00029998,2]
[328645733,1717662646397,-325.53303523,0.00029998,2]
[328645734,1717662646407,-1275.47662783,0.00029998,2]
[328645735,1717662646416,-16000.0,0.00029998,3]
[328645736,1717662646426,-10281.0,0.00029999,2]
[328645737,1717662646436,-512.25221154,0.00029999,30]
[328645738,1717662646446,-74305.54227389,0.00029999,2]
[328645739,1717662646455,-368.89779456,0.00029999,2]
[328645740,1717662646465,-152.046995,0.00029999,7]
[328645741,1717662646475,-166.4913,0.00029999,7]
[328645742,1717662646484,-166.4913,0.00029999,7]
[328645743,1717662646493,-156.705813,0.00029999,7]
[328645744,1717662646502,-151.0,0.00029999,7]
[328645745,1717662646512,-151.0,0.00029999,7]
[328645746,1717662646522,-161.611931,0.00029999,7]
[328645747,1717662646531,-151.0,0.00029999,7]
[328645748,1717662646540,-151.0,0.00029999,7]
[328645749,1717662646550,-151.0,0.00029999,7]
[328645750,1717662646559,-151.0,0.00029999,7]
[328645751,1717662646568,-184.34927,0.00029999,7]
[328645752,1717662646578,-151.0,0.00029999,7]
[328645753,1717662646588,-151.0,0.00029999,7]
[328645754,1717662646598,-151.0,0.00029999,7]
[328645755,1717662646607,-535.273592,0.00029999,7]
[328645756,1717662646617,-151.0,0.00029999,7]
[328645757,1717662646626,-535.273592,0.00029999,7]
[328645758,1717662646636,-151.0,0.00029999,7]
[328645759,1717662646652,-151.0,0.00029999,7]
[328645760,1717662646678,-670.004452,0.00029999,7]
[328645761,1717662646695,-670.004452,0.00029999,7]
[328645762,1717662646705,-151.0,0.00029999,7]
[328645763,1717662646715,-229.639522,0.00029999,7]
[328645764,1717662646724,-303.292221,0.00029999,7]
[328645765,1717662646734,-151.0,0.00029999,7]
[328645766,1717662646744,-303.292221,0.00029999,7]
[328645767,1717662646754,-199.72796,0.00029999,7]
[328645768,1717662646763,-199.72796,0.00029999,7]
[328645769,1717662646773,-432.125985,0.00029999,7]
[328645770,1717662646783,-151.0,0.00029999,7]
[328645771,1717662646793,-151.0,0.00029999,7]
[328645772,1717662646802,-503.031664,0.00029999,7]
[328645773,1717662646815,-550.002291,0.00029999,7]
[328645774,1717662646825,-503.031664,0.00029999,7]
[328645775,1717662646834,-550.002291,0.00029999,7]
[328645776,1717662646843,-151.0,0.00029999,7]
[328645777,1717662646853,-151.0,0.00029999,7]
[328645778,1717662646863,-151.0,0.00029999,7]
[328645779,1717662646872,-151.0,0.00029999,7]
[328645780,1717662646881,-204.558432,0.00029999,7]
[328645781,1717662646891,-151.0,0.00029999,7]
[328645782,1717662646900,-204.558432,0.00029999,7]
[328645783,1717662646912,-151.0,0.00029999,7]
[328645784,1717662646922,-151.0,0.00029999,7]
[328645785,1717662646933,-159.395729,0.00029999,7]
[328645786,1717662646942,-168.782895,0.00029999,7]
[328645787,1717662647047,-159.395729,0.00029999,7]
[328645788,1717662647057,-256.314601,0.00029999,7]
[328645789,1717662647067,-256.314601,0.00029999,7]
[328645790,1717662647076,-151.0,0.00029999,7]
[328645791,1717662647086,-316.492802,0.00029999,7]
[328645792,1717662647096,-316.492802,0.00029999,7]
[328645793,1717662647106,-151.0,0.00029999,7]
[328645794,1717662647119,-151.0,0.00029999,7]
[328645795,1717662647128,-233.57721,0.00029999,7]
[328645796,1717662647138,-233.57721,0.00029999,7]
[328645797,1717662647147,-456.935938,0.00029999,7]
[328645798,1717662647158,-151.0,0.00029999,7]
[328645799,1717662647168,-456.935938,0.00029999,7]
[328645800,1717662647177,-151.0,0.00029999,7]
[328645801,1717662647187,-151.0,0.00029999,7]
[328645802,1717662647199,-151.0,0.00029999,7]
[328645803,1717662647209,-151.0,0.00029999,7]
[328645804,1717662647218,-237.948708,0.00029999,7]
[328645805,1717662647227,-151.0,0.00029999,7]
[328645806,1717662647237,-151.0,0.00029999,7]
[328645807,1717662647246,-151.08081575,0.0003,2]
[328645808,1717662647257,-213.05221992,0.0003,5]
[328645809,1717662647267,-320392.64575775,0.0003,2]
[328645810,1717662647489,-1463.71590666,0.0003,2]
[328645811,1717662647500,-12013.80990003,0.0003,2]
[328645812,1717662647512,-6001.68239998,0.0003,2]
[328645813,1717662647523,-5082.06131538,0.0003,2]
[328645814,1717662647534,-95000.85952901,0.0003,2]
[328645815,1717662647555,-151.0,0.00029979,7]
[328645816,1717662647566,-6282.97677914,0.0003,2]
[328645817,1717662647576,-4173.89379732,0.0003,2]
[328645818,1717662647588,-3000.84119893,0.0003,2]
[328645819,1717662647602,-3067.76912569,0.0003,2]
[328645820,1717662647613,-1668.02297108,0.0003,2]
[328645821,1717662647624,-271.23280778,0.0003,2]
[328645822,1717662647684,-4847.05803768,0.0003,2]
[328645823,1717662647696,-16900.6921505,0.0003,2]
[328645824,1717662647707,-486.91192548,0.0003,2]
[328645825,1717662647718,-10449.11972235,0.0003,2]
[328645826,1717662647794,-2340.93003738,0.0003,2]
[328645827,1717662647805,-600.98387114,0.0003,2]
[328645828,1717662647816,-1108.65019031,0.0003,2]
[328645829,1717662647846,-151.0,0.00029999,7]
[328645830,1717662647855,-1654.9,0.0003,2]
[328645831,1717662647866,-1304.69169453,0.0003,2]
[328645832,1717662647878,-12415.36860853,0.0003,2]
[328645833,1717662647902,-4654.61803241,0.0003,2]
[328645834,1717662647915,-11844.74672683,0.0003,2]
[328645835,1717662647926,-2531.3448,0.0003,2]
[328645836,1717662647937,-508.5,0.0003,2]
[328645837,1717662648055,-1348.24207892,0.0003,2]
[328645856,1717663639542,-295.59373668,0.00013699,2]
[328645857,1717663639561,-180.49244644,0.000137,2]
[328645858,1717663639579,-218.26385672,0.000138,2]
[328645859,1717663639599,-99.64647029,0.000139,2]
[328645860,1717663645137,-2077.46002971,0.000139,2]
[328645861,1717663645159,-150.0,0.00013973,2]
[328645862,1717663645181,-150.0,0.00013989,2]
[328645863,1717663645203,-150.0,0.00013989,2]
[328645864,1717663645225,-152.09,0.0001399,2]
[328645865,1717663645247,-152.09,0.0001399,2]
[328645866,1717663645268,-152.09,0.0001399,2]
[328645867,1717663645291,-156.0486916,0.00013999,2]
[328645868,1717663645313,-3567.36402907,0.00014,2]
[328645878,1717663804884,25000.0,0.000255,30]
[328645889,1717663831971,-575.63967207,0.00013699,2]
[328645890,1717663831981,-619.88389286,0.000139,2]
[328645891,1717663831992,-1880.11610714,0.000139,2]
[328645892,1717663832002,-1941.73142227,0.000139,2]
[328645893,1717663832013,-541.36187773,0.000139,2]
[328645894,1717663832157,-152.11,0.0001399,2]
[328645895,1717663832169,-550.29435515,0.00013998,2]
[328645929,1717663837869,-484.42951065,0.00013998,2]
[328645930,1717663837879,-385.87766036,0.00013999,2]
[328645931,1717663837888,-53750.74536623,0.00014,2]
[328645932,1717663837996,-121154.79773822,0.00014,2]
[328645933,1717663838008,-816.70025,0.00014,2]
[328645934,1717663838019,-61157.67999996,0.00014,2]
[328645935,1717663838031,-417607.40424451,0.00014,2]
[328645936,1717663838043,-608.78013881,0.00014,2]
[328645937,1717663838124,-696.378915,0.00014,2]
[328645938,1717663838136,-532.19052,0.00014,2]
[328645939,1717663838161,-1263.19747724,0.00014,2]
[328645940,1717663838199,-8497.82754026,0.00014,2]
[328645941,1717663838211,-531.79482725,0.00014,2]
[328645942,1717663838234,-1412.37354677,0.00014,2]
[328645943,1717663838275,-9992.83246852,0.00014,2]
[328645944,1717663838286,-1081.44168439,0.00014,2]
[328645945,1717663838297,-4143.36187317,0.00014,2]
[328645946,1717663838404,-70334.97081117,0.00014,2]
[328646214,1717663844413,-2940.96388949,0.00014,2]
[328646215,1717663844425,-25159.40638365,0.00014,2]
[328646216,1717663844542,-3922.66979478,0.00014,2]
[328646217,1717663844573,-2235.54424866,0.00014,2]
[328646218,1717663844585,-4661.42581735,0.00014,2]
[328646219,1717663844596,-2931.29999932,0.00014,2]
[328646220,1717663844607,-3378.03739983,0.00014,2]
[328646221,1717663844618,-2951.52100116,0.00014,2]
[328646222,1717663844672,-853.14575237,0.00014,2]
[328646223,1717663844686,-13270.61688742,0.00014,2]
[328646224,1717663844696,-3693.5286372,0.00014,2]
[328646225,1717663844708,-1093.55502199,0.00014,2]
[328646226,1717663844735,-498.7999998,0.00014,2]
[328646227,1717663844746,-4650.0,0.00014,2]
[328646228,1717663844758,-2500.0,0.00014,2]
[328646229,1717663844769,-95000.85952901,0.00014,2]
[328646230,1717663844831,-138641.42308213,0.00014,2]
[328646231,1717663844842,-16423.25367697,0.00014,2]
[328646232,1717663844853,-26638.58390392,0.00014,2]
[328646233,1717663844864,-3863.409,0.00014,2]
[328646234,1717663844875,-432.16,0.00014,2]
[328646235,1717663844886,-3050.0,0.00014,2]
[328646241,1717663845952,-623.26266108,0.00014,2]
[328646242,1717663846143,-1933.92732013,0.00014,2]
[328646243,1717663846154,-213474.24627215,0.00014,2]
[328646244,1717663846394,-7424.8,0.00014,2]
[328646245,1717663846405,-490.49339826,0.00014,2]
[328646252,1717663847564,-2623.01000423,0.00014,2]
[328646253,1717663847576,-15335.13321361,0.00014,2]
[328646254,1717663847657,-682.64431596,0.00014,2]
[328646279,1717664817921,25000.0,0.000255,30]
[328646280,1717664841163,-210.14590383,0.00013619,2]
[328646281,1717664846106,-79.5979245,0.00013619,2]
[328646282,1717664846126,-699.22776122,0.0001362,2]
[328646316,1717665032313,-518.18572659,0.00013347,2]
[328646317,1717665032323,-1231.81427341,0.00013348,2]
[328646318,1717665032335,-1379.39120515,0.00013348,2]
[328646319,1717665032345,-935.82263878,0.0001362,2]
[328646320,1717665032354,-362.81476569,0.0001362,2]
[328646321,1717665032363,-181.53215462,0.000138,2]
[328646322,1717665032373,-249.81966495,0.000138,2]
[328646323,1717665032383,-150.0,0.00013899,2]
[328646324,1717665032393,-150.0,0.00013899,2]
[328646325,1717665032403,-500.0,0.000139,2]
[328646326,1717665032412,-4137.73963968,0.000139,2]
[328646327,1717665032425,-9273.17099168,0.000139,2]
[328646328,1717665032437,-7520.2478751,0.000139,2]
[328646329,1717665032449,-469.02406266,0.000139,2]
[328646330,1717665032465,-7260.12434325,0.000139,2]
[328646331,1717665032601,-709.84,0.000139,2]
[328646332,1717665032678,-5854.9058077,0.000139,2]
[328646338,1717665038057,-20745.61490034,0.000139,2]
[328646347,1717665038131,-16834.99677959,0.000139,2]
[328646349,1717665038141,-23156.5083,0.000139,2]
[328646351,1717665038152,-3219.96324503,0.000139,2]
[328646353,1717665038163,-222594.6159,0.000139,2]
[328646355,1717665038172,-6887.106,0.000139,2]
[328646356,1717665038182,-181.53215462,0.000139,2]
[328646357,1717665038191,-156.59568569,0.00013998,2]
[328646358,1717665038201,-273.436727,0.00013998,2]
[328646359,1717665038210,-1500.0,0.00013998,2]
[328646360,1717665038220,-3177.82271134,0.00013998,2]
[328646361,1717665038229,-162.52861424,0.00013998,2]
[328646362,1717665038239,-2234.00695061,0.00013999,2]
[328646363,1717665038248,-190211.34253353,0.00014,2]
[328646364,1717665038459,-3055.19030181,0.00014,2]
[328646365,1717665038470,-727.91211932,0.00014,2]
[328646539,1717665042339,-8868.18319905,0.00014,2]
[328646540,1717665042352,-8947.21879473,0.00014,2]
[328646541,1717665042364,-8943.78386462,0.00014,2]
[328646542,1717665042377,-9077.54866152,0.00014,2]
[328646543,1717665042388,-8943.84023489,0.00014,2]
[328646547,1717665043328,-180.36136575,0.00013348,2]
[328646549,1717665043338,-1948.86147025,0.00014,2]
[328646550,1717665043350,-801.65736832,0.00014,2]
[328646551,1717665043378,-298.72,0.00014,2]
[328646552,1717665043391,-1868.97347,0.00014,2]
[328646553,1717665043530,-1358.52,0.00014,2]
[328646554,1717665043541,-9180.75804448,0.00014,2]
[328646555,1717665043613,-2478755.79233051,0.00014,2]
[328646556,1717665043624,-847.134542,0.00014,2]
[328646557,1717665043701,-2078.39617289,0.00014,2]
[328646558,1717665043712,-9606.58965955,0.00014,2]
[328646559,1717665043815,-3104.25288954,0.00014,2]
[328646673,1717665047651,-210.14590383,0.00013999,2]
[328646674,1717665047660,-784.22563468,0.00014,2]
[328646675,1717665047672,-23388.56816822,0.00014,2]
[328646676,1717665047683,-651.4744408,0.00014,2]
[328646677,1717665047736,-4575.08958624,0.00014,2]
[328646678,1717665047747,-86587.57505723,0.00014,2]
[328646679,1717665048042,-3230.612195,0.00014,2]
[328646695,1717665380119,25000.0,0.000255,30]
[328646696,1717665590754,24637.43471251,0.000255,30]
[328646697,1717665704733,2291.82,0.00013989,6]
[328646698,1717665779327,172.23,0.00011158,2]
[328646699,1717666027110,-338.17759936,0.00013736,2]
[328646700,1717666027129,-304.02821629,0.00013737,2]
[328646701,1717666027153,-497.94,0.00013738,2]
[328646702,1717666027288,-250.0,0.00013738,2]
[328646703,1717666027314,-600.8448,0.000138,2]
[328646704,1717666027334,-382.37501768,0.00013866,2]
[328646705,1717666027353,-412.17126416,0.00013874,2]
[328646706,1717666027373,-150.0,0.00013899,2]
[328646707,1717666027393,-192.21683672,0.000139,2]
[328646708,1717666027413,-930.1819,0.000139,2]
[328646709,1717666027432,-500.0,0.000139,2]
[328646710,1717666027451,-529.86456719,0.000139,2]
[328646733,1717666232646,-185.90809506,0.00013899,2]
[328646734,1717666232655,-150.0,0.00013899,2]
[328646735,1717666232665,-7.97690494,0.000139,2]
[328646736,1717666232676,-11696.21643285,0.000139,2]
[328646737,1717666232750,-36419.99984,0.000139,2]
[328646738,1717666232763,-299.99,0.000139,2]
[328646739,1717666232774,-600.0,0.000139,2]
[328646740,1717666232785,-1000.0,0.000139,2]
[328646741,1717666232881,-49445.95225502,0.000139,2]
[328646742,1717666232890,-4094.349,0.000139,2]
[328646743,1717666232900,-2951.63297462,0.000139,2]
[328646744,1717666232909,-1252.42821813,0.000139,2]
[328646745,1717666232918,-169.39271632,0.000139,2]
[328646746,1717666232928,-181.27433181,0.000139,2]
[328646747,1717666232937,-150.59,0.00013947,2]
[328646748,1717666232946,-1016.57,0.00013947,2]
[328646749,1717666232955,-23900.0,0.00013974,2]
[328646750,1717666232964,-150.99,0.00013974,2]
[328646751,1717666232973,-1680.1188841,0.00013989,2]
[328646752,1717666232983,-2837.8692733,0.00013989,2]
[328646754,1717666232992,-153.29,0.0001399,2]
[328646756,1717666233001,-557.47414302,0.00013998,2]
[328646758,1717666233011,-429.53862842,0.00013998,2]
[328646761,1717666233020,-175.73495447,0.00013998,2]
[328646763,1717666233029,-155.16748384,0.00013998,2]
[328646765,1717666233038,-506.32296391,0.00013998,2]
[328646767,1717666233048,-327.81540231,0.00013998,2]
[328646769,1717666233057,-155.34173793,0.00013998,2]
[328646771,1717666233067,-155.0,0.00013998,2]
[328646773,1717666233076,-341.47947617,0.00013998,2]
[328646775,1717666233086,-309.52599757,0.00013998,2]
[328646777,1717666233095,-155.0,0.00013999,2]
[328646779,1717666233105,-1688.45481849,0.00013999,2]
[328646780,1717666233115,-3859.6215,0.00013999,2]
[328646781,1717666233125,-180089.65211622,0.00014,2]
[328646805,1717666238977,-568575.96060005,0.00014,2]
[328646872,1717666243965,-525.73608221,0.00014,2]
[328646877,1717666244398,-360.26484934,0.00014,2]
[328646878,1717666244410,-2752.07403993,0.00014,2]
[328646879,1717666244557,-14018.5495923,0.00014,2]
[328646880,1717666244568,-1848.86090829,0.00014,2]
[328646891,1717666246911,-3e-08,0.00014,2]
[328646892,1717666246979,-1705.2921568,0.00014,2]
[328646894,1717666595874,18191.05107477,0.0001,2]
[328646952,1717667431652,-185.90809506,0.000134,2]
[328646953,1717667431666,-574.43,0.00013401,2]
[328646954,1717667431676,-250.0,0.00013733,2]
[328646955,1717667431686,-2355.47,0.00013804,2]
[328646957,1717667431696,-893.8026055,0.00013851,2]
[328646960,1717667431818,-630.10225962,0.00013851,2]
[328646961,1717667431831,-729.06513488,0.00013851,2]
[328646962,1717667431840,-313.84226142,0.00013871,2]
[328646963,1717667431849,-150.0,0.00013899,2]
[328646964,1717667431860,-781.9151037,0.000139,2]
[328646965,1717667431952,-356.28102618,0.000139,2]
[328646968,1717667437897,-1163.382,0.000139,2]
[328646969,1717667437909,-404.08543028,0.000139,2]
[328646970,1717667437918,-1040.1284869,0.000139,2]
[328646971,1717667437930,-1037.3316131,0.000139,2]
[328646972,1717667437940,-1000.0,0.00013927,2]
[328646973,1717667437949,-150.0,0.00013945,2]
[328646974,1717667437959,-469.639368,0.00013973,2]
[328646975,1717667437968,-1016.224238,0.00013989,2]
[328646976,1717667437978,-1745.2431355,0.00013989,2]
[328646977,1717667437987,-1542.5108868,0.00013989,2]
[328646978,1717667437996,-152.09,0.0001399,2]
[328646979,1717667438006,-443.15409623,0.00013998,2]
[328646980,1717667438016,-263.66735755,0.00013999,2]
[328646981,1717667438026,-3848.38,0.00013999,2]
[328646982,1717667438036,-30850.80397222,0.00014,2]
[328646991,1717667438217,-1298.10070513,0.00014,2]
[328647005,1717667438361,-293883.96298724,0.00014,2]
[328647102,1717667440733,-263.66735754,0.00013999,2]
[328647103,1717667440743,-65.97264245,0.00014,2]
[328647104,1717667440754,-365.85916475,0.00014,2]
[328647105,1717667440766,-4924.977275,0.00014,2]
[328647107,1717667441676,-8708.97670485,0.00014,2]
[328647109,1717667441687,-79378.61611355,0.00014,2]
[328647110,1717667441699,-441.72500004,0.00014,2]
[328647111,1717667441720,-1075.18,0.00014,2]
[328647115,1717667443788,-32973.25701711,0.00014,2]
[328647116,1717667443799,-6282.13364464,0.00014,2]
[328647117,1717667444016,-35478.4392727,0.00014,2]
[328647118,1717667444028,-365.51349905,0.00014,2]
[328647134,1717667445781,-148282.24637051,0.00014,2]
[328647135,1717667445792,-3548.10979071,0.00014,2]
[328647136,1717667445804,-366802.05867036,0.00014,2]
[328647137,1717667446130,-1500.75039591,0.00014,2]
[328647138,1717667446143,-496.3669441,0.00014,2]
[328647139,1717667446154,-8185.37246337,0.00014,2]
[328647140,1717667453154,793.99651013,0.0001,2]
[328647141,1717667453179,11270.13543903,0.0001,2]
[328647142,1717667453205,8196.72660101,0.0001,2]
[328647143,1717667456619,136803.27339899,0.0001,2]
[328647144,1717667456652,49080.80349523,0.0001,2]
[328647145,1717667456683,79300.0,0.0001,2]
[328647146,1717667456708,283497.36454945,0.0001,2]
[328647148,1717667475157,80971.84429961,0.0001,2]
[328647163,1717667957296,-1000.0,0.0003,120]
[328647164,1717667957337,-203.083843,0.00030399,120]
[328647191,1717668631966,-180.49244644,0.00012206,2]
[328647192,1717668631976,-150.0,0.00012305,2]
[328647193,1717668631986,-1236.7112443,0.00012306,2]
[328647194,1717668632115,-442.25,0.00012306,2]
[328647195,1717668632127,-4124.999999,0.00012306,2]
[328647196,1717668632139,-1420.22,0.00012306,2]
[328647197,1717668632267,-467.5,0.00012306,2]
[328647213,1717668637830,-10274.0346688,0.00012306,2]
[328647214,1717668637985,-2314.6652877,0.00012306,2]